fUSD/lending_fUSD_20241231
["ID","MTS","AMOUNT","RATE_DAILY","PERIOD"]
[347317788,1735683055667,-500.0,0.00011499,2]
[347317789,1735683055676,-500.0,0.00011499,2]
[347317790,1735683055685,-500.0,0.00011499,2]
[347317791,1735683055694,-606.51682591,0.00011499,2]
[347317792,1735683055703,-2452.81317066,0.00011499,2]
[347317793,1735683056506,-1477.82779147,0.00011499,2]
[347317794,1735683056583,-3290.47607736,0.00011499,2]
[347317795,1735683056597,-278.88296051,0.00011499,2]
[347317796,1735683056607,-3873.74962183,0.00011499,2]
[347317797,1735683056616,-1250.86,0.00011499,2]
[347317798,1735683056625,-1250.86,0.00011499,2]
[347317799,1735683056635,-1250.86,0.00011499,2]
[347317800,1735683056644,-1250.86,0.00011499,2]
[347317801,1735683056653,-1250.86,0.00011499,2]
[347317802,1735683056663,-1250.86,0.00011499,2]
[347317803,1735683056671,-220.52811905,0.00011499,2]
[347317804,1735683056684,-1030.33188095,0.00011499,2]
[347317805,1735683056692,-1250.86,0.00011499,2]
[347317806,1735683056702,-1250.86,0.00011499,2]
[347317807,1735683056711,-1250.86,0.00011499,2]
[347317808,1735683056720,-1250.86,0.00011499,2]
[347317809,1735683056728,-515.35911795,0.00011499,2]
[347317810,1735683056739,-735.50088205,0.00011499,2]
[347317811,1735683056748,-1250.86,0.00011499,2]
[347317812,1735683056758,-1250.86,0.00011499,2]
[347317813,1735683056767,-1250.86,0.00011499,2]
[347317814,1735683056776,-188.19659781,0.00011499,2]
[347317815,1735683056786,-1062.66340219,0.00011499,2]
[347317816,1735683056795,-1250.86,0.00011499,2]
[347317817,1735683056804,-1250.86,0.00011499,2]
[347317818,1735683056814,-1250.86,0.00011499,2]
[347317819,1735683056823,-1251.0850136,0.00011499,2]
[347317820,1735683056831,-500.0,0.00011499,2]
[347317821,1735683056840,-7.56991675,0.00011499,2]
[347317822,1735683056852,-492.43008325,0.00011499,2]
[347317823,1735683056861,-500.0,0.00011499,2]
[347317824,1735683056871,-500.0,0.00011499,2]
[347317825,1735683056880,-500.0,0.00011499,2]
[347317826,1735683056889,-500.0,0.00011499,2]
[347317827,1735683056898,-500.0,0.00011499,2]
[347317828,1735683056907,-500.0,0.00011499,2]
[347317829,1735683056916,-500.0,0.00011499,2]
[347317830,1735683056926,-500.0,0.00011499,2]
[347317831,1735683056935,-500.0,0.00011499,2]
[347317832,1735683056944,-511.93719724,0.00011499,2]
[347317833,1735683056953,-1423.70574998,0.00011499,2]
[347317834,1735683056965,-1706.22425002,0.00011499,2]
[347317835,1735683056975,-3129.93,0.00011499,2]
[347317836,1735683056984,-3129.93,0.00011499,2]
[347317837,1735683056994,-3129.93,0.00011499,2]
[347317838,1735683057003,-3129.93,0.00011499,2]
[347317839,1735683057012,-1155.38698421,0.00011499,2]
[347317840,1735683057039,-1974.54301579,0.00011499,2]
[347317841,1735683057048,-3129.93,0.00011499,2]
[347317842,1735683057057,-3129.93,0.00011499,2]
[347317843,1735683057067,-3129.93,0.00011499,2]
[347317844,1735683057075,-3129.93,0.00011499,2]
[347317845,1735683057085,-3129.93,0.00011499,2]
[347317846,1735683057094,-3129.93,0.00011499,2]
[347317847,1735683057103,-3129.93,0.00011499,2]
[347317848,1735683057112,-3129.93,0.00011499,2]
[347317849,1735683057121,-3129.93,0.00011499,2]
[347317850,1735683057131,-3129.93,0.00011499,2]
[347317851,1735683057140,-3129.93,0.00011499,2]
[347317852,1735683057149,-3129.93,0.00011499,2]
[347317853,1735683057158,-3129.93,0.00011499,2]
[347317854,1735683057167,-3129.93,0.00011499,2]
[347317855,1735683057176,-3130.03074743,0.00011499,2]
[347317856,1735683057185,-4462.8,0.00011499,2]
[347317857,1735683057195,-4462.8,0.00011499,2]
[347317858,1735683057205,-4462.8,0.00011499,2]
[347317859,1735683057215,-4462.8,0.00011499,2]
[347317860,1735683057224,-4462.8,0.00011499,2]
[347317861,1735683057233,-4462.8,0.00011499,2]
[347317862,1735683057242,-4462.8,0.00011499,2]
[347317863,1735683057251,-4462.8,0.00011499,2]
[347317864,1735683057260,-4462.8,0.00011499,2]
[347317865,1735683057269,-4462.8,0.00011499,2]
[347317866,1735683057278,-3481.96901633,0.00011499,2]
[347317867,1735683058453,-1382.79867146,0.00011296,2]
[347317868,1735683058465,-4613.30132854,0.00011296,2]
[347317869,1735683058476,-988.9,0.00011297,2]
[347317870,1735683058485,-980.83098367,0.00011499,2]
[347317871,1735683058494,-4462.8,0.00011499,2]
[347317872,1735683058503,-3436.66768779,0.00011499,2]
[347317873,1735683058519,-412.83147982,0.00011499,2]
[347317874,1735683058531,-613.30083239,0.00011499,2]
[347317875,1735683058539,-4191.5420209,0.00011499,2]
[347317876,1735683058568,-271.2579791,0.00011499,2]
[347317877,1735683058578,-4462.8,0.00011499,2]
[347317878,1735683058587,-4462.8,0.00011499,2]
[347317879,1735683058599,-4462.8,0.00011499,2]
[347317880,1735683058608,-4462.8,0.00011499,2]
[347317881,1735683058617,-4462.8,0.00011499,2]
[347317882,1735683058626,-4462.90832696,0.00011499,2]
[347317883,1735683058636,-810.98,0.00011499,2]
[347317884,1735683058645,-810.98,0.00011499,2]
[347317885,1735683058653,-810.98,0.00011499,2]
[347317886,1735683058663,-810.98,0.00011499,2]
[347317887,1735683058672,-810.98,0.00011499,2]
[347317888,1735683058681,-810.98,0.00011499,2]
[347317889,1735683058690,-810.98,0.00011499,2]
[347317890,1735683058699,-810.98,0.00011499,2]
[347317891,1735683058708,-810.98,0.00011499,2]
[347317892,1735683058717,-810.98,0.00011499,2]
[347317893,1735683058726,-810.98,0.00011499,2]
[347317894,1735683058735,-810.98,0.00011499,2]
[347317895,1735683058743,-810.98,0.00011499,2]
[347317896,1735683058753,-810.98,0.00011499,2]
[347317897,1735683058762,-810.98,0.00011499,2]
[347317898,1735683058771,-810.98,0.00011499,2]
[347317899,1735683058780,-810.98,0.00011499,2]
[347317900,1735683058789,-810.98,0.00011499,2]
[347317901,1735683058797,-810.98,0.00011499,2]
[347317902,1735683058807,-466.90413764,0.00011499,2]
[347317903,1735683058818,-344.07586236,0.00011499,2]
[347317904,1735683058827,-331.52452991,0.00011499,2]
[347317905,1735683058838,-437.92033221,0.00011499,2]
[347317906,1735683058851,-41.68623472,0.00011499,2]
[347317907,1735683058862,-243.53733478,0.00011499,2]
[347317908,1735683058873,-256.46266522,0.00011499,2]
[347317909,1735683058882,-223.88270978,0.00011499,2]
[347317910,1735683059997,-500.0,0.00011297,2]
[347317911,1735683060007,-3765.08,0.00011299,2]
[347317912,1735683060017,-150.0,0.00011299,2]
[347317913,1735683060026,-2403.17729022,0.00011499,2]
[347317914,1735683060036,-1815.59,0.00011499,2]
[347317915,1735683060046,-3163.1,0.00011499,2]
[347317916,1735683060056,-3163.1,0.00011499,2]
[347317917,1735683060066,-3163.1,0.00011499,2]
[347317918,1735683060075,-3163.1,0.00011499,2]
[347317919,1735683060085,-3163.1,0.00011499,2]
[347317920,1735683060094,-3163.1,0.00011499,2]
[347317921,1735683060104,-3163.1,0.00011499,2]
[347317922,1735683060113,-3163.31868022,0.00011499,2]
[347317923,1735683060122,-1630.66,0.00011499,2]
[347317924,1735683060132,-2863.04,0.00011499,2]
[347317925,1735683060142,-3765.07,0.00011499,2]
[347317926,1735683060151,-3765.07,0.00011499,2]
[347317927,1735683060161,-2140.28447365,0.00011499,2]
[347317928,1735683060172,-1624.78552635,0.00011499,2]
[347317929,1735683060182,-3765.07,0.00011499,2]
[347317930,1735683060191,-1654.60848379,0.00011499,2]
[347317931,1735683060203,-1202.460015,0.00011499,2]
[347317932,1735683060214,-403.80567716,0.00011499,2]
[347317933,1735683060257,-504.19582405,0.00011499,2]
[347317934,1735683060267,-3765.07,0.00011499,2]
[347317935,1735683060277,-3765.07,0.00011499,2]
[347317936,1735683060286,-3765.07,0.00011499,2]
[347317937,1735683060297,-3765.07,0.00011499,2]
[347317938,1735683060307,-3765.07,0.00011499,2]
[347317939,1735683060317,-3765.07,0.00011499,2]
[347317940,1735683060327,-3765.07,0.00011499,2]
[347317941,1735683060336,-3765.07,0.00011499,2]
[347317942,1735683060346,-3765.07,0.00011499,2]
[347317943,1735683060355,-3765.07,0.00011499,2]
[347317944,1735683060365,-3765.07,0.00011499,2]
[347317945,1735683060375,-3765.07,0.00011499,2]
[347317946,1735683060384,-3765.07,0.00011499,2]
[347317947,1735683060393,-3765.07,0.00011499,2]
[347317948,1735683060403,-3765.07,0.00011499,2]
[347317949,1735683060413,-3765.07,0.00011499,2]
[347317950,1735683060422,-3765.25925467,0.00011499,2]
[347317951,1735683060432,-1296.35,0.00011499,2]
[347317952,1735683060441,-1296.35,0.00011499,2]
[347317953,1735683060452,-1296.35,0.00011499,2]
[347317954,1735683060464,-1296.35,0.00011499,2]
[347317955,1735683060474,-1296.35,0.00011499,2]
[347317956,1735683060484,-1296.35,0.00011499,2]
[347317957,1735683060494,-1296.35,0.00011499,2]
[347317958,1735683060504,-1296.35,0.00011499,2]
[347317959,1735683060753,-1296.35,0.00011499,2]
[347317960,1735683060766,-1296.35,0.00011499,2]
[347317961,1735683060775,-1296.35,0.00011499,2]
[347317962,1735683060785,-1296.35,0.00011499,2]
[347317963,1735683060794,-1296.35,0.00011499,2]
[347317964,1735683060804,-1296.35,0.00011499,2]
[347317965,1735683060814,-1296.35,0.00011499,2]
[347317966,1735683060824,-1296.35,0.00011499,2]
[347317967,1735683060834,-1296.35,0.00011499,2]
[347317968,1735683060844,-1296.35,0.00011499,2]
[347317969,1735683060854,-1296.35,0.00011499,2]
[347317970,1735683060863,-1296.35,0.00011499,2]
[347317971,1735683060873,-1296.35,0.00011499,2]
[347317972,1735683060882,-1296.58055295,0.00011499,2]
[347317973,1735683060891,-9327.39,0.00011499,2]
[347317974,1735683060901,-279959.17514949,0.000115,2]
[347317975,1735683060938,-1956.7953615,0.000115,2]
[347317976,1735683060949,-432.10173818,0.000115,2]
[347317977,1735683060961,-731.0381,0.000115,2]
[347317978,1735683060972,-1102.15734889,0.000115,2]
[347317979,1735683078559,1618.18,8.812e-05,2]
[347317980,1735683127255,2300.0,8.383e-05,2]
[347317981,1735683128835,2300.0,9.753e-05,2]
[347317982,1735683131398,250.0,0.0001062,2]
[347317983,1735683151410,213.569,0.0001092,2]
[347317984,1735683201842,21917.25,0.00010959,2]
[347317985,1735683211016,226.2,0.00010137,2]
[347317987,1735683229488,1045.51403473,0.0002,120]
[347317988,1735683234676,706.62,0.00010511,2]
[347317989,1735683269225,170.01,0.00010796,2]
[347317990,1735683297049,23900.0,0.00010477,2]
[347317991,1735683299001,250.0,0.00010477,2]
[347317992,1735683398048,156.29,0.00010451,2]
[347317993,1735683398258,156.29,0.00010456,2]
[347317994,1735683398460,156.29,0.00010461,2]
[347317995,1735683398868,156.29,0.00010466,2]
[347317996,1735683399080,156.29,0.00010471,2]
[347317997,1735683399316,156.29,0.00010477,2]
[347317998,1735683399527,156.29,0.00010482,2]
[347317999,1735683399730,156.29,0.00010487,2]
[347318000,1735683399939,156.29,0.00010492,2]
[347318001,1735683400157,156.29,0.00010498,2]
[347318002,1735683400360,156.29,0.00010503,2]
[347318003,1735683402241,911154.75445282,0.0002,120]
[347318004,1735683441747,250.0,0.00010436,2]
[347318005,1735683490979,32781.95455755,0.0002,120]
[347318006,1735683565082,349.68389078,0.00010993,2]
[347318007,1735683630331,163.34,0.00010433,2]
[347318008,1735683692837,176.92,8.308e-05,2]
[347318009,1735683801708,191.22,0.00010399,2]
[347318010,1735683826954,204.666,0.0001092,2]
[347318011,1735683873233,970.02,0.00010381,2]
[347318012,1735683914454,150.0,0.00010332,2]
[347318013,1735683916284,150.0,0.00010332,2]
[347318014,1735683918152,150.010107,0.0002,120]
[347318015,1735683945254,1537.27,8.475e-05,2]
[347318016,1735683945463,1537.27,0.00010739,2]
[347318017,1735683961314,3968.00861137,9.8e-05,2]
[347318018,1735683976666,1000.0,0.00010393,2]
[347318019,1735684036041,172.95,8.302e-05,2]
[347318020,1735684092048,426.57,0.00010137,2]
[347318023,1735684168189,349.68389078,0.00011,2]
[347318028,1735684228794,9646.29,0.00010378,2]
[347318035,1735684231929,-1065.0,0.00011076,2]
[347318036,1735684231939,-1118.09359182,0.00011123,2]
[347318037,1735684231950,-1181.90640818,0.00011123,2]
[347318038,1735684231959,-533.40982703,0.00011173,2]
[347318039,1735684231971,-1627.1084,0.00011194,2]
[347318040,1735684231981,-300.0,0.00011194,2]
[347318041,1735684231990,-5000.0,0.00011195,2]
[347318042,1735684232000,-404.7227,0.00011196,2]
[347318043,1735684232011,-1000.0,0.00011197,2]
[347318044,1735684232020,-6362.174,0.00011197,2]
[347318045,1735684232030,-14707.3696,0.00011197,2]
[347318046,1735684232043,-152.13354158,0.00011197,2]
[347318047,1735684232053,-163.00626081,0.00011273,2]
[347318048,1735684232063,-1077.25,0.00011273,2]
[347318049,1735684232073,-150.99,0.00011273,2]
[347318050,1735684232083,-1874.59588397,0.00011273,2]
[347318051,1735684232095,-341.62411603,0.00011273,2]
[347318052,1735684232104,-156.03124636,0.00011273,2]
[347318053,1735684232116,-1586.11079054,0.00011273,2]
[347318054,1735684232127,-869.2279631,0.00011273,2]
[347318055,1735684232136,-1111.5553969,0.00011273,2]
[347318056,1735684232178,-8888.4346031,0.00011273,2]
[347318057,1735684232191,-1042.11529108,0.00011273,2]
[347318058,1735684232203,-775.05470892,0.00011273,2]
[347318059,1735684232212,-150.99,0.00011273,2]
[347318060,1735684232223,-11242.25817637,0.00011273,2]
[347318062,1735684232276,-5488.61886519,0.00011273,2]
[347318130,1735684237695,-1358.50341627,0.00011273,2]
[347318131,1735684237706,-1072.9,0.00011273,2]
[347318132,1735684237724,-17589.58217172,0.00011273,2]
[347318133,1735684237764,-337.83016865,0.00011273,2]
[347318134,1735684237778,-12037.45376007,0.00011273,2]
[347318135,1735684237796,-14561.12344173,0.00011273,2]
[347318149,1735684238014,-1693.19,0.00011293,2]
[347318157,1735684238090,-928.76555827,0.00011293,2]
[347318217,1735684238920,-2015.34444173,0.00011293,2]
[347318218,1735684238930,-500.0,0.00011293,2]
[347318219,1735684238939,-534.50715827,0.00011293,2]
[347318220,1735684238956,-2517.24284173,0.00011293,2]
[347318221,1735684238968,-500.0,0.00011293,2]
[347318222,1735684238978,-499.51156811,0.00011293,2]
[347318223,1735684238987,-855.39366441,0.00011293,2]
[347318224,1735684239020,-1198.75633559,0.00011293,2]
[347318225,1735684239029,-500.0,0.00011293,2]
[347318226,1735684239038,-7327.78,0.00011293,2]
[347318227,1735684239048,-903.7,0.00011293,2]
[347318228,1735684239058,-500.0,0.00011293,2]
[347318229,1735684239067,-3227.77,0.00011293,2]
[347318230,1735684239077,-1359.39,0.00011293,2]
[347318231,1735684239086,-263.5,0.00011294,2]
[347318232,1735684239095,-999.99,0.00011294,2]
[347318233,1735684239104,-8397.05,0.00011294,2]
[347318234,1735684239113,-7356.57,0.00011294,2]
[347318235,1735684239122,-7987.36,0.00011294,2]
[347318236,1735684239131,-1475.25,0.00011294,2]
[347318237,1735684239140,-4138.67,0.00011294,2]
[347318238,1735684239149,-12756.22,0.00011294,2]
[347318239,1735684239158,-11395.54,0.00011294,2]
[347318240,1735684239167,-6092.08,0.00011294,2]
[347318241,1735684239176,-16558.41,0.00011294,2]
[347318242,1735684239185,-1495.88,0.00011294,2]
[347318243,1735684239194,-8811.16,0.00011294,2]
[347318244,1735684239203,-14822.47,0.00011294,2]
[347318245,1735684239213,-500.0,0.00011294,2]
[347318246,1735684239222,-500.0,0.00011294,2]
[347318247,1735684239232,-357.15890295,0.00011294,2]
[347318248,1735684239241,-500.0,0.00011294,2]
[347318249,1735684239251,-500.0,0.00011294,2]
[347318250,1735684239259,-581.07257008,0.00011294,2]
[347318251,1735684239269,-500.0,0.00011294,2]
[347318252,1735684239278,-500.0,0.00011294,2]
[347318253,1735684239287,-194.39326889,0.00011294,2]
[347318254,1735684239296,-333.11736223,0.00011294,2]
[347318255,1735684239305,-6092.89,0.00011294,2]
[347318256,1735684239314,-2829.08,0.00011294,2]
[347318257,1735684239324,-17565.57,0.00011294,2]
[347318258,1735684239333,-188.26591876,0.00011294,2]
[347318259,1735684239342,-8421.05,0.00011294,2]
[347318260,1735684239351,-4454.63,0.00011294,2]
[347318261,1735684239360,-23330.39,0.00011294,2]
[347318262,1735684239369,-3954.12,0.00011294,2]
[347318263,1735684239378,-12819.25,0.00011294,2]
[347318264,1735684239387,-8814.31,0.00011294,2]
[347318265,1735684239397,-18488.91,0.00011294,2]
[347318267,1735684239406,-5948.36,0.00011294,2]
[347318268,1735684239415,-500.0,0.00011294,2]
[347318269,1735684239424,-20807.65,0.00011294,2]
[347318271,1735684239433,-28786.62,0.00011294,2]
[347318272,1735684239442,-7213.35,0.00011294,2]
[347318273,1735684239451,-500.0,0.00011294,2]
[347318274,1735684239460,-6537.06,0.00011294,2]
[347318275,1735684239469,-16067.17,0.00011294,2]
[347318276,1735684239478,-3159.06,0.00011294,2]
[347318277,1735684239487,-9724.5,0.00011294,2]
[347318278,1735684239496,-5820.46,0.00011294,2]
[347318279,1735684239505,-7527.08,0.00011294,2]
[347318280,1735684239514,-1610.29,0.00011294,2]
[347318281,1735684239522,-500.0,0.00011295,2]
[347318282,1735684239531,-1505.69,0.00011295,2]
[347318283,1735684239540,-500.0,0.00011295,2]
[347318284,1735684239550,-896.38,0.00011295,2]
[347318286,1735684239559,-2051.67,0.00011295,2]
[347318288,1735684239570,-500.0,0.00011295,2]
[347318289,1735684239580,-500.0,0.00011295,2]
[347318290,1735684239590,-500.0,0.00011295,2]
[347318291,1735684239599,-500.0,0.00011295,2]
[347318292,1735684239608,-2432.06,0.00011295,2]
[347318293,1735684239618,-502.53,0.00011295,2]
[347318294,1735684239630,-3004.53,0.00011295,2]
[347318295,1735684239640,-500.0,0.00011295,2]
[347318296,1735684239649,-294.72654034,0.00011295,2]
[347318297,1735684239658,-500.0,0.00011295,2]
[347318298,1735684239667,-521.16,0.00011295,2]
[347318299,1735684239676,-1279.49,0.00011295,2]
[347318300,1735684239685,-902.36,0.00011295,2]
[347318301,1735684239694,-500.0,0.00011295,2]
[347318302,1735684239703,-906.1,0.00011295,2]
[347318303,1735684239713,-500.0,0.00011295,2]
[347318304,1735684239721,-500.0,0.00011295,2]
[347318305,1735684239730,-1107.08,0.00011295,2]
[347318306,1735684239739,-500.0,0.00011295,2]
[347318307,1735684239748,-500.0,0.00011295,2]
[347318308,1735684239757,-500.0,0.00011295,2]
[347318309,1735684239765,-2475.8,0.00011295,2]
[347318310,1735684239775,-500.0,0.00011295,2]
[347318311,1735684239784,-500.0,0.00011295,2]
[347318312,1735684239793,-500.0,0.00011295,2]
[347318313,1735684239801,-1181.93,0.00011295,2]
[347318314,1735684239810,-2111.56,0.00011295,2]
[347318315,1735684239819,-2921.89,0.00011295,2]
[347318316,1735684239828,-500.0,0.00011295,2]
[347318317,1735684239837,-500.0,0.00011295,2]
[347318318,1735684239846,-724.55,0.00011295,2]
[347318319,1735684239855,-2223.43,0.00011295,2]
[347318320,1735684239864,-698.07,0.00011295,2]
[347318321,1735684239874,-2408.6,0.00011295,2]
[347318322,1735684239883,-557.71,0.00011295,2]
[347318323,1735684239892,-500.0,0.00011295,2]
[347318324,1735684239901,-1118.45,0.00011295,2]
[347318325,1735684239910,-500.0,0.00011295,2]
[347318326,1735684239919,-1831.77,0.00011295,2]
[347318327,1735684239928,-500.0,0.00011295,2]
[347318328,1735684239937,-1768.7,0.00011295,2]
[347318329,1735684239946,-500.0,0.00011295,2]
[347318330,1735684239955,-1096.89,0.00011295,2]
[347318331,1735684239967,-500.0,0.00011295,2]
[347318332,1735684239976,-795.71,0.00011295,2]
[347318333,1735684239985,-500.0,0.00011295,2]
[347318334,1735684239993,-500.0,0.00011295,2]
[347318336,1735684240002,-500.0,0.00011295,2]
[347318337,1735684240012,-500.0,0.00011295,2]
[347318338,1735684240021,-500.0,0.00011295,2]
[347318339,1735684240030,-500.0,0.00011295,2]
[347318341,1735684240040,-500.0,0.00011295,2]
[347318342,1735684240051,-587.59,0.00011295,2]
[347318344,1735684240060,-1850.94,0.00011295,2]
[347318346,1735684240069,-1555.06,0.00011295,2]
[347318347,1735684240078,-500.0,0.00011295,2]
[347318348,1735684240087,-500.0,0.00011295,2]
[347318349,1735684240096,-500.0,0.00011295,2]
[347318350,1735684240105,-2311.5,0.00011295,2]
[347318351,1735684240114,-990.35,0.00011295,2]
[347318352,1735684240123,-524.34,0.00011295,2]
[347318353,1735684240133,-500.0,0.00011295,2]
[347318354,1735684240143,-620.82,0.00011295,2]
[347318355,1735684240152,-500.0,0.00011295,2]
[347318356,1735684240162,-515.9,0.00011295,2]
[347318357,1735684240171,-529.47,0.00011295,2]
[347318358,1735684240180,-544.29,0.00011295,2]
[347318359,1735684240189,-500.0,0.00011295,2]
[347318360,1735684240198,-500.0,0.00011295,2]
[347318361,1735684240208,-602.61,0.00011295,2]
[347318362,1735684240217,-500.0,0.00011295,2]
[347318363,1735684240226,-732.65,0.00011295,2]
[347318364,1735684240235,-616.35,0.00011295,2]
[347318365,1735684240244,-500.0,0.00011295,2]
[347318366,1735684240253,-1333.98,0.00011295,2]
[347318367,1735684240262,-570.97,0.00011295,2]
[347318368,1735684240272,-1577.95,0.00011295,2]
[347318369,1735684240282,-500.0,0.00011295,2]
[347318370,1735684240291,-1155.91,0.00011295,2]
[347318371,1735684240300,-1508.61,0.00011295,2]
[347318372,1735684240309,-1139.35,0.00011295,2]
[347318373,1735684240317,-500.0,0.00011295,2]
[347318374,1735684240327,-1956.08,0.00011295,2]
[347318375,1735684240336,-539.42,0.00011295,2]
[347318376,1735684240345,-500.0,0.00011295,2]
[347318377,1735684240354,-602.01,0.00011295,2]
[347318378,1735684240363,-500.0,0.00011295,2]
[347318379,1735684240372,-858.69,0.00011295,2]
[347318380,1735684240381,-500.0,0.00011295,2]
[347318381,1735684240390,-1222.74,0.00011295,2]
[347318382,1735684240399,-1111.34,0.00011295,2]
[347318383,1735684240408,-1384.92,0.00011295,2]
[347318384,1735684240417,-1224.11,0.00011295,2]
[347318385,1735684240426,-1003.29,0.00011295,2]
[347318386,1735684240435,-1631.24,0.00011295,2]
[347318387,1735684240443,-500.0,0.00011295,2]
[347318388,1735684240453,-500.0,0.00011295,2]
[347318389,1735684240462,-500.0,0.00011295,2]
[347318390,1735684240749,-587.51,0.00011295,2]
[347318391,1735684240758,-500.0,0.00011295,2]
[347318392,1735684240767,-937.2,0.00011295,2]
[347318393,1735684240778,-500.0,0.00011295,2]
[347318394,1735684240787,-500.0,0.00011295,2]
[347318395,1735684240795,-2369.85,0.00011295,2]
[347318396,1735684240804,-1367.27,0.00011295,2]
[347318397,1735684240813,-975.68,0.00011295,2]
[347318398,1735684240822,-1005.68,0.00011295,2]
[347318399,1735684240831,-577.44,0.00011295,2]
[347318400,1735684240840,-2860.85,0.00011295,2]
[347318401,1735684240849,-500.0,0.00011295,2]
[347318402,1735684240858,-500.0,0.00011295,2]
[347318403,1735684240867,-500.0,0.00011295,2]
[347318404,1735684240876,-637.62672371,0.00011295,2]
[347318405,1735684240886,-1772.04,0.00011295,2]
[347318406,1735684240895,-1620.91,0.00011295,2]
[347318407,1735684240904,-500.0,0.00011295,2]
[347318408,1735684240913,-500.0,0.00011295,2]
[347318409,1735684240922,-1493.22,0.00011295,2]
[347318410,1735684240931,-500.0,0.00011295,2]
[347318411,1735684240939,-500.0,0.00011295,2]
[347318412,1735684240950,-500.0,0.00011295,2]
[347318413,1735684240960,-500.0,0.00011295,2]
[347318414,1735684240974,-500.0,0.00011295,2]
[347318415,1735684240983,-500.0,0.00011295,2]
[347318416,1735684240992,-500.0,0.00011295,2]
[347318417,1735684241002,-500.0,0.00011295,2]
[347318418,1735684241011,-500.0,0.00011295,2]
[347318419,1735684241020,-500.0,0.00011295,2]
[347318420,1735684241029,-500.0,0.00011295,2]
[347318421,1735684241038,-500.0,0.00011295,2]
[347318422,1735684241047,-249.2060449,0.00011295,2]
[347318423,1735684241056,-1854.15,0.00011295,2]
[347318424,1735684241065,-500.0,0.00011295,2]
[347318425,1735684241075,-500.0,0.00011295,2]
[347318426,1735684241083,-500.0,0.00011295,2]
[347318427,1735684241093,-500.0,0.00011295,2]
[347318428,1735684241103,-500.0,0.00011295,2]
[347318429,1735684241112,-506.77,0.00011295,2]
[347318430,1735684241121,-832.68,0.00011295,2]
[347318431,1735684241130,-500.0,0.00011295,2]
[347318432,1735684241139,-984.6,0.00011295,2]
[347318433,1735684241148,-500.0,0.00011295,2]
[347318434,1735684241157,-786.06,0.00011295,2]
[347318435,1735684241167,-500.0,0.00011295,2]
[347318436,1735684241176,-678.77,0.00011295,2]
[347318437,1735684241186,-500.0,0.00011295,2]
[347318438,1735684241195,-1334.94,0.00011295,2]
[347318439,1735684241205,-2076.77,0.00011295,2]
[347318440,1735684241216,-500.0,0.00011295,2]
[347318441,1735684241225,-500.0,0.00011295,2]
[347318442,1735684241235,-702.06,0.00011295,2]
[347318443,1735684241244,-500.0,0.00011295,2]
[347318444,1735684241254,-500.0,0.00011295,2]
[347318445,1735684241264,-500.0,0.00011295,2]
[347318446,1735684241274,-500.0,0.00011295,2]
[347318447,1735684241284,-1605.5,0.00011295,2]
[347318448,1735684241293,-500.0,0.00011295,2]
[347318449,1735684241302,-4771.85,0.00011295,2]
[347318450,1735684241312,-1934.67,0.00011295,2]
[347318451,1735684241321,-500.0,0.00011295,2]
[347318452,1735684241330,-1360.48,0.00011295,2]
[347318453,1735684241340,-780.14,0.00011295,2]
[347318454,1735684241349,-500.0,0.00011295,2]
[347318455,1735684241359,-500.0,0.00011295,2]